bitfinex-derivatives/quotes_ETHF0:USTF0_20250112
["timestamp","ask_amount","ask_price","bid_price","bid_amount"]
[1736641223402,0.458,3284.2,3283.7,1.3585]
[1736641223791,0.21324,3283.9,3283.7,1.57174]
[1736641224498,0.458,3284.2,3283.7,1.57174]
[1736641224499,0.21322,3284.1,3283.9,0.21323]
[1736641224699,3.2078,3284.4,3283.7,1.3585]
[1736641224898,3.2078,3285.0,3283.9,5.32400332]
[1736641225096,0.21317,3284.9,3284.6,0.21318]
[1736641225396,0.21317,3284.9,3284.7,1.55938]
[1736641225796,0.21317,3284.9,3284.7,1.3462]
[1736641226099,3.6614,3285.0,3284.8,0.21317]
[1736641226289,3.2078,3285.5,3285.2,0.21315]
[1736641226490,3.2078,3285.5,3285.3,0.65344]
[1736641226698,3.2078,3285.5,3285.4,0.4581]
[1736641228396,3.2078,3285.5,3285.4,0.67123]
[1736641229092,0.2131,3285.9,3285.4,0.67123]
[1736641229292,0.21311,3285.8,3285.4,0.4581]
[1736641229491,0.4699,3286.0,3285.4,0.4581]
[1736641229692,0.4699,3286.0,3285.6,0.21312]
[1736641230099,3.8996558,3286.1,3285.7,0.21311]
[1736641231102,0.6918558,3286.1,3285.4,3.03170332]
[1736641231402,0.21308,3286.3,3285.8,0.2131]
[1736641231603,0.21308,3286.3,3285.9,0.4709]
[1736641231802,0.64947,3286.4,3285.9,0.684]
[1736641232010,0.4364,3286.4,3286.0,0.21309]
[1736641232298,0.64947,3286.4,3286.1,0.4602]
[1736641232502,0.21307,3286.5,3286.1,0.4602]
[1736641232804,0.21308,3286.3,3286.1,0.4602]
[1736641233207,3.2078,3286.6,3286.1,0.4602]
[1736641233406,0.21307,3286.4,3286.1,0.4602]
[1736641233705,0.21306,3286.5,3286.1,0.4602]
[1736641233901,0.21307,3286.4,3286.1,0.4602]
[1736641234702,3.2078,3286.6,3286.1,0.4602]
[1736641235007,0.21307,3286.4,3286.1,0.4602]
[1736641236309,4.23840332,3286.8,3286.2,0.21308]
[1736641236310,2.79585332,3286.8,3286.2,0.21308]
[1736641236606,2.79585332,3286.8,3286.2,0.68138]
[1736641236997,0.67965,3286.8,3286.2,0.68138]
[1736641237405,2.58280332,3286.8,3286.2,0.4683]
[1736641237604,2.58280332,3286.8,3286.1,3.668]
[1736641237605,0.21307,3286.4,3286.1,3.668]
[1736641238422,3.2078,3286.6,3286.1,3.668]
[1736641238711,2.57990332,3286.5,3285.7,3.2078]
[1736641239004,2.57990332,3286.5,3285.7,3.6445]
[1736641239005,0.21309,3286.2,3285.7,3.6445]
[1736641239216,0.21308,3286.3,3285.7,3.85761]
[1736641239402,0.21308,3286.2,3285.7,3.85761]
[1736641239603,0.21307,3286.4,3285.9,0.2131]
[1736641240210,0.4637,3286.5,3286.0,0.21309]
[1736641240211,0.67677,3286.5,3286.0,0.21309]
[1736641240411,0.21307,3286.4,3286.1,0.4724]
[1736641243910,0.21306,3286.5,3286.1,0.68549]
[1736641244110,3.2078,3286.6,3286.2,0.4383]
[1736641244317,3.2078,3286.6,3286.3,0.68217]
[1736641246020,3.2078,3286.6,3286.3,0.4691]
[1736641246422,3.42086,3286.6,3286.3,0.4691]
[1736641246721,3.2078,3286.6,3286.3,0.4691]
[1736641247018,3.42086,3286.6,3286.3,0.4691]
[1736641247523,3.2078,3286.6,3286.3,0.4691]
[1736641247716,0.21305,3286.7,3286.3,0.4691]
[1736641247916,0.4666,3286.8,3286.3,0.4691]
[1736641247917,0.21306,3286.6,3286.3,0.4691]
[1736641248420,0.21305,3286.7,3286.3,0.68217]
[1736641248620,0.21305,3286.7,3286.3,0.68218]
[1736641248814,0.4666,3286.8,3286.3,0.4691]
[1736641249118,0.21306,3286.5,3286.3,0.4691]
[1736641249515,0.4666,3286.8,3286.3,0.68217]
[1736641249717,3.2078,3287.0,3286.5,5.32400332]
[1736641249920,3.2078,3287.0,3286.6,0.4697]
[1736641250121,3.2078,3287.0,3286.8,0.21304]
[1736641250318,3.2078,3287.0,3286.9,0.9073]
[1736641250520,3.2078,3287.0,3286.9,1.12034]
[1736641250816,3.2078,3287.0,3286.9,0.9073]
[1736641251018,0.21302,3287.2,3286.9,0.9073]
[1736641254120,0.21301,3287.3,3286.9,1.12033]
[1736641254517,3.6453,3287.4,3286.9,0.9073]
[1736641254717,0.21302,3287.2,3286.9,0.9073]
[1736641255626,0.21302,3287.1,3286.9,0.9073]
[1736641256626,0.21303,3287.0,3286.9,0.4633]
[1736641257221,3.6453,3287.4,3286.7,0.52894397]
[1736641257418,0.21304,3286.8,3286.7,0.52894397]
[1736641259024,0.21304,3286.9,3286.7,0.52894397]
[1736641260221,0.21304,3286.9,3286.7,0.74199397]
[1736641261426,4.17783,3287.4,3286.7,0.52894397]
[1736641261726,0.21304,3286.9,3286.7,0.52894397]
[1736641261929,0.21304,3286.9,3286.6,1.61075]
[1736641262128,0.21304,3286.9,3286.6,4.81855]
[1736641262325,0.21304,3286.9,3286.6,4.6055]
[1736641262533,0.21304,3286.8,3286.6,4.81855]
[1736641263025,4.17783,3287.4,3286.6,4.6055]
[1736641263336,0.21305,3286.7,3286.6,4.6055]
[1736641264422,0.21305,3286.7,3286.6,3.2078]
[1736641264619,0.21307,3286.4,3286.3,0.4735]
[1736641265734,0.53268,3286.4,3286.0,0.4467]
[1736641265923,0.21311,3285.8,3285.7,3.2078]
[1736641266327,0.18431,3285.8,3285.6,2.32932332]
[1736641266633,0.21311,3285.8,3285.6,0.21312]
[1736641266831,0.21311,3285.8,3285.7,0.4383]
[1736641268525,0.21311,3285.8,3285.7,0.65141]
[1736641268728,0.21311,3285.8,3285.7,0.4383]
[1736641269030,0.21311,3285.8,3285.7,0.65141]
[1736641269534,0.21311,3285.8,3285.7,0.4383]
[1736641269834,0.21312,3285.6,3285.5,2.58970332]
[1736641270232,0.21312,3285.6,3285.5,2.80283332]
[1736641270634,0.21312,3285.6,3285.5,2.58970332]
[1736641270829,0.21312,3285.6,3285.5,2.80283332]
[1736641271028,0.21312,3285.6,3285.5,2.58970332]
[1736641271235,0.21312,3285.6,3285.5,0.4735]
[1736641271435,0.53273,3286.1,3285.3,3.6545]
[1736641271436,0.21313,3285.5,3285.3,3.86764]
[1736641271635,0.21313,3285.5,3285.3,4.34504]
[1736641271942,0.21313,3285.5,3285.4,0.21313]
[1736641272230,0.53273,3286.1,3285.3,0.9241]
[1736641272432,0.21313,3285.4,3285.3,0.9241]
[1736641272633,0.21313,3285.4,3285.3,1.13724]
[1736641273235,0.21313,3285.4,3285.3,0.9241]
[1736641273538,0.21316,3285.0,3284.9,3.2078]
[1736641273936,0.16756,3285.0,3284.9,3.2078]
[1736641274333,0.47746,3285.3,3284.9,3.2078]
[1736641274531,0.21316,3285.0,3284.9,3.2078]
[1736641274745,0.47746,3285.3,3284.9,3.2078]
[1736641275538,0.21316,3285.0,3284.9,3.2078]
[1736641277538,0.47746,3285.3,3284.5,0.21319]
[1736641277539,0.21317,3284.9,3284.5,0.21319]
[1736641277732,0.66647,3284.9,3284.5,0.21319]
[1736641278038,0.4547,3284.8,3284.5,0.21319]
[1736641278928,0.4547,3284.8,3284.4,0.4581]
[1736641279128,0.4533,3284.9,3284.6,0.21318]
[1736641279439,0.21316,3285.1,3284.7,0.21318]
[1736641279742,5.32400332,3285.4,3284.4,0.4581]
[1736641279743,0.447,3285.3,3284.4,0.4581]
[1736641280039,0.21317,3284.9,3284.5,0.21319]
[1736641280240,3.42096,3285.0,3284.6,0.21318]
[1736641280835,0.21317,3284.9,3284.5,0.21319]
[1736641281240,3.42096,3285.0,3284.6,0.21318]
[1736641281543,0.21317,3284.9,3284.5,0.21319]
[1736641281740,3.2078,3285.0,3284.4,0.4581]
[1736641281941,0.21318,3284.7,3284.4,0.4581]
[1736641282239,3.2078,3285.0,3284.4,0.4581]
[1736641282438,3.2078,3285.0,3284.4,0.67129]
[1736641282640,0.21317,3284.8,3284.4,0.67129]
[1736641284042,0.21317,3284.9,3284.5,0.21319]
[1736641285141,3.2078,3285.0,3284.4,0.4581]
[1736641285438,0.21317,3284.8,3284.4,0.67129]
[1736641285740,0.21317,3284.8,3284.4,0.4581]
[1736641285936,0.21317,3284.8,3284.5,0.21319]
[1736641286447,0.21318,3284.7,3284.4,0.4581]
[1736641286646,3.2078,3285.0,3284.4,0.4581]
[1736641286846,0.21318,3284.7,3284.4,0.6713]
[1736641287247,0.21318,3284.8,3284.4,0.6713]
[1736641287642,0.21317,3284.8,3284.4,0.6713]
[1736641288038,0.4599,3284.9,3284.4,0.4581]
[1736641288549,0.21317,3284.8,3284.4,0.6713]
[1736641288746,0.4599,3284.9,3284.2,3.2078]
[1736641288747,0.99282,3284.9,3284.2,3.2078]
[1736641288944,0.2132,3284.5,3284.2,3.2078]
[1736641289250,0.4734,3284.7,3284.2,3.2078]
[1736641289448,0.466,3284.4,3284.2,3.42101]
[1736641289949,0.466,3284.4,3284.3,0.2132]
[1736641290253,0.21318,3284.7,3284.3,0.2132]
[1736641291046,1.6565,3284.8,3284.2,3.2078]
[1736641291238,0.21319,3284.5,3284.2,3.42101]
[1736641291649,0.21319,3284.5,3284.2,3.2078]
[1736641292049,0.21319,3284.5,3284.2,3.42101]
[1736641292348,1.6565,3284.8,3284.2,3.42101]
[1736641292544,0.21319,3284.6,3284.2,3.42101]
[1736641293844,1.6565,3284.8,3284.2,3.42101]
[1736641294046,0.21319,3284.5,3284.2,3.42101]
[1736641294249,0.2132,3284.5,3284.2,3.2078]
[1736641295151,1.6565,3284.8,3284.2,3.2078]
[1736641295448,0.21319,3284.6,3284.2,3.42101]
[1736641296249,1.6565,3284.8,3284.2,3.2078]
[1736641296451,0.21319,3284.5,3284.2,3.2078]
[1736641296650,5.32400332,3284.5,3283.8,0.21324]
[1736641296851,0.21322,3284.1,3283.7,0.21324]
[1736641297053,0.21322,3284.1,3283.5,1.45314397]
[1736641297652,0.21322,3284.1,3283.8,0.21324]
[1736641298045,0.21321,3284.2,3283.8,0.21324]
[1736641298654,0.4779,3284.3,3283.8,0.21324]
[1736641298851,0.21322,3284.1,3283.7,0.21324]
[1736641299051,0.21321,3284.2,3283.8,0.21323]
[1736641299848,0.4779,3284.3,3283.7,3.2078]
[1736641300155,0.21321,3284.3,3283.9,0.21323]
[1736641300355,0.21321,3284.3,3284.0,0.4653]
[1736641300558,0.21321,3284.2,3284.1,0.4784]
[1736641301460,0.21324,3283.8,3283.7,3.2078]
[1736641301954,0.21323,3283.9,3283.7,3.2078]
[1736641302560,0.4381,3284.1,3283.7,3.2078]
[1736641302852,0.21324,3283.9,3283.7,3.2078]
[1736641303557,0.4381,3284.1,3283.7,3.42104]
[1736641303757,0.21323,3284.0,3283.7,3.42104]
[1736641304353,0.21323,3283.9,3283.7,3.42104]
[1736641304549,0.4381,3284.1,3283.7,3.2078]
[1736641304757,0.21324,3283.8,3283.7,3.2078]
[1736641307163,0.21323,3283.9,3283.7,3.42104]
[1736641309857,0.4381,3284.1,3283.7,0.21324]
[1736641310058,0.21324,3283.9,3283.7,0.21324]
[1736641310763,0.21324,3283.7,3283.6,1.415]
[1736641311262,0.21324,3283.7,3283.6,0.4784]
[1736641313264,0.4509,3283.9,3283.4,3.2078]
[1736641313660,0.21326,3283.5,3283.4,3.2078]
[1736641316159,0.21325,3283.7,3283.4,3.2078]
[1736641316365,3.2078,3284.0,3283.4,5.32400332]
[1736641316560,3.42103,3284.0,3283.6,0.21324]
[1736641316761,0.21323,3283.9,3283.6,0.21324]
[1736641316953,0.21323,3283.9,3283.7,0.4492]
[1736641317157,0.21323,3283.9,3283.8,0.4365]
[1736641318168,3.42103,3284.0,3283.8,0.4365]
[1736641318366,3.42103,3284.0,3283.9,0.4706]
[1736641320571,0.21323,3284.0,3283.9,0.4706]
[1736641325071,0.4381,3284.1,3283.9,0.4706]
[1736641325264,3.2078,3284.3,3283.9,0.4706]
[1736641325466,0.21322,3284.0,3283.9,0.4706]
[1736641327670,0.915,3284.2,3283.7,0.4492]
[1736641327671,0.21324,3283.8,3283.7,0.4492]
[1736641327866,0.21324,3283.8,3283.3,3.42107]
[1736641327867,0.53305,3284.1,3283.4,0.9349]
[1736641328073,0.21326,3283.5,3283.4,1.4078]
[1736641328473,0.21326,3283.5,3283.4,0.4706]
[1736641331073,4.4088,3283.8,3283.4,2.58680332]
[1736641331074,3.2078,3283.8,3283.4,2.58680332]
[1736641331271,3.42102,3284.2,3283.5,0.4517]
[1736641331471,3.42102,3284.2,3283.8,0.21323]
[1736641331673,3.42102,3284.2,3283.9,0.4557]
[1736641331873,3.2078,3284.2,3284.0,0.4517]
[1736641332079,0.21322,3284.1,3284.0,0.8876]
[1736641332973,3.2078,3284.2,3284.0,0.8876]
[1736641333878,0.6811,3284.3,3284.0,0.8876]
[1736641333879,0.89431,3284.3,3284.0,0.8876]
[1736641334081,0.21322,3284.1,3284.0,0.8876]
[1736641334980,0.21322,3284.0,3283.9,0.4557]
[1736641335175,6.21520332,3284.2,3283.5,0.4364]
[1736641335374,0.21325,3283.7,3283.5,0.4364]
[1736641335583,0.21325,3283.7,3283.6,0.4688]
[1736641335786,0.21325,3283.6,3283.4,0.4608]
[1736641336077,0.21326,3283.5,3283.4,0.4608]
[1736641337784,0.67075,3283.6,3283.4,0.4608]
[1736641338079,0.21325,3283.6,3283.4,0.4608]
[1736641338275,1.201,3283.8,3283.4,0.4608]
[1736641338785,3.2078,3284.0,3283.4,0.4608]
[1736641338976,3.76350332,3284.2,3283.4,0.4608]
[1736641339178,0.21323,3284.0,3283.6,0.21325]
[1736641339378,0.21324,3283.8,3283.7,0.4608]
[1736641339872,3.2078,3284.0,3283.7,0.4608]
[1736641340077,0.89431,3284.3,3283.7,0.4608]
[1736641340273,0.6811,3284.3,3284.0,0.21322]
[1736641340480,0.6811,3284.3,3284.1,0.439]
[1736641340678,0.6811,3284.3,3284.1,0.65221]
[1736641341574,0.6811,3284.3,3284.1,0.439]
[1736641342774,3.2078,3284.5,3284.2,0.21321]
[1736641343081,9.5061939,3284.7,3284.4,0.2132]
[1736641343277,9.5061939,3284.8,3284.5,0.67679]
[1736641343485,9.5061939,3284.8,3284.5,0.4636]
[1736641343681,9.5061939,3284.8,3284.7,0.21318]
[1736641343977,9.5061939,3284.8,3284.5,0.4636]
[1736641344291,13.51664237,3285.2,3284.5,0.4636]
[1736641344292,0.21318,3284.7,3284.5,0.4636]
[1736641344676,3.2078,3285.0,3284.5,0.4636]
[1736641344876,0.21319,3284.6,3284.5,0.4636]
[1736641347682,0.21318,3284.7,3284.5,0.4636]
[1736641347877,3.2078,3285.0,3284.5,0.4636]
[1736641348481,3.42096,3285.0,3284.6,0.21318]
[1736641348670,3.2078,3285.0,3284.8,0.21317]
[1736641348873,3.2078,3285.0,3284.7,0.4452]
[1736641349278,3.42096,3285.0,3284.7,0.4452]
[1736641349485,3.2078,3285.0,3284.7,0.65838]
[1736641349780,3.2078,3285.0,3284.7,0.4452]
[1736641349982,3.42096,3285.0,3284.7,0.4452]
[1736641350378,3.2078,3285.0,3284.7,0.65838]
[1736641350777,3.2078,3285.0,3284.7,0.4452]
[1736641351078,3.42096,3285.0,3284.7,0.4452]
[1736641351982,0.21316,3285.0,3284.7,0.4452]
[1736641352184,1.6339,3285.2,3284.7,0.4452]
[1736641352489,0.21317,3284.9,3284.7,0.4452]
[1736641352984,0.21316,3285.0,3284.7,0.4452]
[1736641354182,0.21317,3284.9,3284.7,0.4452]
[1736641354792,0.21317,3284.8,3284.7,0.4452]
[1736641355478,0.21317,3284.8,3284.5,0.4636]
[1736641355682,0.4497,3284.7,3284.5,0.9209]
[1736641356082,0.21319,3284.6,3284.5,0.9209]
[1736641356290,0.21319,3284.6,3284.5,0.4573]
[1736641357992,0.4497,3284.7,3284.3,3.2078]
[1736641358191,0.2132,3284.4,3284.3,3.2078]
[1736641359789,0.21321,3284.3,3283.8,1.62083]
[1736641360594,0.21321,3284.2,3283.8,1.62083]
[1736641360793,0.21321,3284.2,3283.9,0.21323]
[1736641360998,0.21321,3284.2,3283.8,1.62083]
[1736641361693,0.21322,3284.1,3283.8,1.62083]
[1736641361992,0.21323,3284.0,3283.8,1.4076]
[1736641362190,5.78650332,3284.5,3283.8,1.4076]
[1736641362392,0.21323,3283.9,3283.8,1.4076]
[1736641366294,0.21323,3283.9,3283.8,0.4676]
[1736641368596,0.9295,3284.2,3283.8,0.4676]
[1736641368597,0.21322,3284.1,3283.8,0.4676]
[1736641368789,0.21323,3284.0,3283.8,0.4676]
[1736641369590,0.4566,3284.2,3283.8,0.4676]
[1736641369787,0.21323,3283.9,3283.8,0.4676]
[1736641369991,0.4566,3284.2,3283.8,0.4676]
[1736641370196,0.21323,3284.0,3283.8,0.4676]
[1736641372296,0.21323,3283.9,3283.8,0.4676]
[1736641372895,3.2078,3284.1,3283.1,2.11620332]
[1736641373206,0.21326,3283.5,3283.2,0.4777]
[1736641373405,0.4793,3283.4,3283.2,0.4777]
[1736641373701,0.69257,3283.4,3283.2,0.4777]
[1736641373901,0.21328,3283.1,3283.0,0.4393]
[1736641374205,0.21331,3282.8,3282.6,0.4608]
[1736641374403,0.2133,3282.9,3282.6,0.4608]
[1736641374907,0.21329,3283.0,3282.6,0.67411]
[1736641375205,0.2133,3282.9,3282.6,0.4608]
[1736641375408,0.4553,3283.2,3282.6,0.4608]
[1736641375705,0.2133,3282.8,3282.6,0.4608]
[1736641376005,0.2133,3282.9,3282.6,0.4608]
[1736641376598,0.21331,3282.8,3282.6,0.4608]
[1736641378407,0.2133,3282.9,3282.6,0.67411]
[1736641378603,5.32400332,3283.3,3282.6,0.4608]
[1736641378604,3.2078,3283.3,3282.6,0.4608]
[1736641378806,0.21329,3283.1,3282.7,0.21331]
[1736641379003,0.21329,3283.1,3282.6,0.4608]
[1736641379305,0.21329,3283.1,3282.8,0.2133]
[1736641379707,0.21329,3283.1,3282.9,0.4552]
[1736641379899,0.21329,3283.1,3283.0,0.4658]
[1736641380101,0.21329,3283.0,3282.9,0.4552]
[1736641380297,5.32400332,3283.3,3282.7,0.46681933]
[1736641380610,0.4748,3283.2,3282.7,0.46681933]
[1736641380910,0.2133,3283.0,3282.7,0.46681933]
[1736641381818,0.2133,3282.9,3282.7,0.46681933]
[1736641382105,0.4748,3283.2,3282.7,0.46681933]
[1736641382298,5.32400332,3283.3,3282.7,0.46681933]
[1736641382808,0.2133,3282.8,3282.7,0.46681933]
[1736641383001,5.32400332,3283.3,3282.7,0.46681933]
[1736641383002,0.2133,3282.9,3282.7,0.46681933]
[1736641383710,0.2133,3282.8,3282.7,0.46681933]
[1736641384407,0.2133,3282.8,3282.7,0.00101933]
[1736641386512,5.2133,3282.8,3282.7,0.00101933]
[1736641386708,5.2133,3282.8,3281.9,0.4465]
[1736641386709,0.53331,3282.6,3281.9,0.4465]
[1736641387008,3.2078,3282.3,3281.9,0.4465]
[1736641387814,0.21334,3282.2,3281.9,0.4465]
[1736641388006,0.21335,3282.1,3281.9,0.4465]
[1736641388312,0.21338,3281.7,3281.3,3.2078]
[1736641388518,0.21337,3281.8,3281.3,4.7688]
[1736641388702,0.21338,3281.6,3281.3,0.8928]
[1736641388907,5.32400332,3281.5,3280.9,3.2078]
[1736641389105,5.32400332,3281.5,3281.0,0.4756]
[1736641389401,0.2134,3281.4,3281.0,0.4756]
[1736641390299,5.32400332,3281.5,3281.0,0.4756]
[1736641390510,0.2134,3281.3,3281.0,0.4756]
[1736641391708,0.4482,3281.6,3281.2,0.2134]
[1736641391916,1.42237,3281.8,3281.3,0.4739]
[1736641392211,0.21337,3281.8,3281.3,0.4739]
[1736641392605,4.4168,3281.9,3281.4,0.4601]
[1736641392816,0.21337,3281.8,3281.4,0.4601]
[1736641393810,3.2078,3281.9,3281.4,0.67349]
[1736641394010,3.2078,3281.9,3281.5,0.21339]
[1736641394210,3.2078,3281.9,3281.6,0.4662]
[1736641394606,0.21337,3281.7,3281.6,0.4662]
[1736641396410,0.21337,3281.8,3281.6,0.4662]
[1736641396914,0.21337,3281.7,3281.6,0.4662]
[1736641397215,3.6418,3281.9,3281.3,0.4739]
[1736641397415,0.21339,3281.5,3281.3,0.4739]
[1736641397616,3.42119,3281.5,3281.3,0.4739]
[1736641398315,3.42119,3281.5,3281.2,0.4397]
[1736641398316,3.2078,3281.5,3281.2,0.4397]
[1736641398811,3.2078,3281.5,3281.3,0.4422]
[1736641399010,3.42119,3281.5,3281.3,0.4422]
[1736641399212,3.2078,3281.5,3281.3,0.4422]
[1736641400118,3.42119,3281.5,3281.3,0.4422]
[1736641400314,0.4414,3281.6,3281.3,0.4422]
[1736641401024,3.2078,3281.9,3281.3,0.4422]
[1736641401212,3.42116,3281.9,3281.4,0.21339]
[1736641401718,0.21337,3281.8,3281.3,0.6556]
[1736641402720,0.21337,3281.8,3281.4,0.21339]
[1736641403020,0.21337,3281.8,3281.3,0.6556]
[1736641403621,3.2078,3281.9,3281.3,0.4422]
[1736641403821,3.2078,3281.9,3281.7,0.21337]
[1736641404118,3.2078,3281.9,3281.8,1.3768]
[1736641404712,3.2078,3281.9,3281.8,1.59017]
[1736641404912,4.4168,3282.3,3282.1,0.21334]
[1736641405108,3.2078,3282.3,3281.8,1.3768]
[1736641405415,0.21335,3282.2,3281.8,1.3768]
[1736641405615,0.21335,3282.2,3281.8,1.59017]
[1736641405918,3.42114,3282.3,3281.9,0.21336]
[1736641406619,0.21334,3282.2,3281.8,1.59016]
[1736641407118,3.42114,3282.3,3281.9,0.21336]
[1736641407720,3.42114,3282.3,3281.8,1.3768]
[1736641408023,3.42114,3282.3,3281.9,0.21336]
[1736641408525,0.21335,3282.2,3281.8,1.59016]
[1736641409812,2.11620332,3282.5,3281.8,1.3768]
[1736641410018,0.21336,3281.9,3281.8,1.3768]
[1736641410424,0.21336,3282.0,3281.8,1.3768]
[1736641410625,0.4638,3282.2,3281.8,1.3768]
[1736641410818,0.4638,3282.2,3281.8,1.59016]
[1736641410819,0.67715,3282.2,3281.8,1.59016]
[1736641411025,0.67715,3282.2,3281.8,1.3768]
[1736641411318,0.21335,3282.1,3281.8,1.3768]
[1736641412226,0.4638,3282.2,3281.8,1.3768]
[1736641412431,3.2078,3282.3,3282.1,0.21334]
[1736641412726,3.2078,3282.3,3282.2,0.21334]
[1736641413821,0.21331,3282.7,3282.3,0.21333]
[1736641414022,0.4638,3282.8,3282.4,1.3584]
[1736641414222,3.2078,3283.1,3282.4,1.3584]
[1736641414428,3.2078,3283.1,3282.5,3.2078]
[1736641414633,3.42109,3283.1,3282.6,0.21331]
[1736641415628,3.2078,3283.1,3282.6,0.21331]
[1736641415927,0.21329,3283.0,3282.5,3.2078]
[1736641416129,3.2078,3283.1,3282.5,3.2078]
[1736641416327,0.21332,3282.6,3282.5,3.2078]
[1736641418125,0.21331,3282.7,3282.5,3.2078]
[1736641418331,0.9083,3282.9,3282.5,3.2078]
[1736641418529,0.21332,3282.6,3282.5,3.2078]
[1736641419825,0.21332,3282.5,3282.3,0.4512]
[1736641421238,0.21332,3282.6,3282.3,0.4512]
[1736641421830,0.21331,3282.7,3282.3,0.66453]
[1736641422127,0.21332,3282.6,3282.3,0.4512]
[1736641425233,0.21331,3282.7,3282.3,0.66453]
[1736641425931,0.21331,3282.8,3282.4,0.21333]
[1736641426127,3.2078,3282.9,3282.5,0.4622]
[1736641426427,0.21329,3283.0,3282.7,0.21331]
[1736641426633,0.21329,3283.1,3282.8,0.4357]
[1736641426829,0.21329,3283.1,3282.9,0.4451]
[1736641427034,1.223,3283.2,3282.9,0.4451]
[1736641427335,0.21329,3283.0,3282.9,0.4451]
[1736641428234,3.2078,3283.4,3282.9,0.4451]
[1736641428634,0.21328,3283.2,3282.9,0.4451]
[1736641429538,0.21328,3283.2,3282.9,0.6584]
[1736641430039,0.21328,3283.2,3282.9,0.4451]
[1736641433338,0.21327,3283.4,3283.0,0.21329]
[1736641433548,5.824,3283.6,3283.1,0.4397]
[1736641433847,0.21327,3283.3,3283.1,0.4397]
[1736641434339,0.21328,3283.2,3283.1,0.4397]
[1736641435229,0.21327,3283.3,3283.1,0.4397]
[1736641436237,4.1233,3283.6,3283.1,0.4397]
[1736641436437,0.21327,3283.4,3283.1,0.4397]
[1736641436938,0.21327,3283.4,3283.1,0.65298]
[1736641437642,0.21327,3283.4,3283.1,0.4397]
[1736641439046,4.1233,3283.6,3283.1,0.4397]
[1736641439246,0.21327,3283.3,3283.1,0.4397]
[1736641439745,0.21328,3283.2,3283.1,0.4397]
[1736641440841,2.11620332,3283.4,3282.9,0.4451]
[1736641441048,0.21329,3283.0,3282.9,0.4451]
[1736641441440,0.21329,3283.1,3282.9,0.4451]
[1736641441847,4.1233,3283.6,3282.9,0.4451]
[1736641442043,0.21327,3283.3,3282.9,0.6584]
[1736641442645,0.21327,3283.3,3283.0,0.4327]
[1736641442843,4.33655,3283.6,3283.2,0.21327]
[1736641443047,3.2078,3283.6,3283.3,0.4769]
[1736641443239,0.21324,3283.8,3283.4,0.67106]
[1736641443448,0.21323,3283.9,3283.5,0.67555]
[1736641443643,2.1436,3284.0,3283.5,0.4623]
[1736641443846,0.21323,3283.9,3283.5,0.67556]
[1736641444044,2.1436,3284.0,3283.5,0.4623]
[1736641444254,0.21324,3283.8,3283.5,0.4623]
[1736641444553,0.21325,3283.6,3283.5,0.4623]
[1736641447159,0.21327,3283.3,3283.2,3.2078]
[1736641447450,0.21327,3283.3,3282.7,0.2133]
[1736641447451,1.87957,3283.5,3282.8,3.6778]
[1736641447652,0.2133,3282.9,3282.8,3.6778]
[1736641450757,0.2133,3282.9,3282.8,0.47]
[1736641450951,0.2133,3282.9,3282.8,3.6778]
[1736641451353,0.2133,3282.9,3282.8,0.47]
[1736641452150,3.2078,3283.2,3282.3,3.73674397]
[1736641452352,0.9154,3282.8,3282.4,0.9237]
[1736641452547,0.21332,3282.5,3282.4,0.9237]
[1736641452948,0.21332,3282.5,3282.3,3.86453]
[1736641452949,0.9154,3282.8,3282.3,3.6512]
[1736641453155,0.21333,3282.4,3282.3,3.2078]
[1736641453850,0.21334,3282.3,3282.1,0.21335]
[1736641454159,0.21334,3282.3,3281.9,5.80040332]
[1736641454363,0.21334,3282.3,3282.0,0.21335]
[1736641454656,4.1232,3282.8,3282.0,0.21335]
[1736641454851,0.21334,3282.3,3282.0,0.21335]
[1736641455354,0.21331,3282.7,3282.0,0.21335]
[1736641455556,0.21334,3282.3,3282.0,0.21335]
[1736641456550,4.1232,3282.8,3282.0,0.21335]
[1736641456753,4.1232,3282.8,3281.9,3.89756]
[1736641456946,0.5333,3282.6,3281.9,3.6842]
[1736641457152,0.21335,3282.1,3281.9,3.6842]
[1736641457352,1.7573,3282.6,3281.9,3.6842]
[1736641457553,0.21335,3282.0,3281.9,3.6842]
[1736641458660,0.21335,3282.2,3281.9,3.89756]
[1736641458854,1.7573,3282.6,3281.9,3.89756]
[1736641458855,0.21335,3282.1,3281.9,3.89756]
[1736641459469,1.7573,3282.6,3281.9,3.6842]
[1736641459760,0.21335,3282.0,3281.9,3.2078]
[1736641461758,0.8963,3282.2,3281.9,3.2078]
[1736641461759,0.21335,3282.1,3281.9,3.2078]
[1736641462652,0.8963,3282.2,3281.9,3.42116]
[1736641463255,0.8963,3282.2,3281.9,3.2078]
[1736641463458,1.10964,3282.2,3281.9,3.2078]
[1736641464058,0.8963,3282.2,3281.9,3.42116]
[1736641464962,0.8963,3282.2,3281.9,0.21336]
[1736641465160,0.8963,3282.2,3281.9,3.42116]
[1736641465357,0.8963,3282.2,3281.9,3.2078]
[1736641465559,0.8963,3282.2,3281.9,3.42116]
[1736641466458,0.8963,3282.2,3281.9,3.2078]
[1736641466459,1.10964,3282.2,3281.9,3.2078]
[1736641467961,1.10964,3282.2,3281.9,3.6505]
[1736641468757,1.10964,3282.2,3281.9,0.4427]
[1736641472256,0.8963,3282.2,3281.9,0.4427]
[1736641472464,0.8963,3282.2,3281.9,0.65606]
[1736641472959,1.10964,3282.2,3281.9,0.65606]